[Event "*** Titled Tuesday Blitz"]
[Site "Chess.com"]
[Date "2019.02.05"]
[Round "7"]
[White "Fy_Rakotomaharo"]
[Black "INLOVEWITHF"]
[Result "1-0"]
[WhiteElo "2479"]
[BlackElo "2294"]
[TimeControl "180+2"]
[EndTime "14:38:47 PST"]
[Termination "Fy_Rakotomaharo won by resignation"]

1. d4 {[%clk 0:03:01.9]} 1... d5 {[%clk 0:02:59.4]} 2. c4 {[%clk 0:03:03]} 2...
c6 {[%clk 0:03:00.5]} 3. Nc3 {[%clk 0:03:03.5]} 3... Nf6 {[%clk 0:03:00.5]} 4.
e3 {[%clk 0:03:04.8]} 4... e6 {[%clk 0:03:00.3]} 5. Nf3 {[%clk 0:03:04.3]} 5...
Nbd7 {[%clk 0:03:01]} 6. Qc2 {[%clk 0:03:05.9]} 6... Bd6 {[%clk 0:03:00.6]} 7.
b3 {[%clk 0:03:07.4]} 7... Qc7 {[%clk 0:02:45.9]} 8. Be2 {[%clk 0:03:00.6]} 8...
e5 {[%clk 0:02:40.2]} 9. Bb2 {[%clk 0:02:58.3]} 9... e4 {[%clk 0:02:39.8]} 10.
Nd2 {[%clk 0:02:59.3]} 10... O-O {[%clk 0:02:29.6]} 11. O-O-O {[%clk 0:02:59.5]}
11... a6 {[%clk 0:02:24.9]} 12. g4 {[%clk 0:02:49.5]} 12... b5 {[%clk
0:01:52.8]} 13. g5 {[%clk 0:02:45.9]} 13... b4 {[%clk 0:01:50]} 14. gxf6 {[%clk
0:02:44.6]} 14... bxc3 {[%clk 0:01:50.3]} 15. Qxc3 {[%clk 0:02:37.3]} 15... Nxf6
{[%clk 0:01:51]} 16. c5 {[%clk 0:02:36.3]} 16... Be7 {[%clk 0:01:51.6]} 17. Rdg1
{[%clk 0:02:34.3]} 17... a5 {[%clk 0:01:50.7]} 18. Rg3 {[%clk 0:02:25.1]} 18...
Ba6 {[%clk 0:01:47.1]} 19. Bxa6 {[%clk 0:02:15.7]} 19... Rxa6 {[%clk 0:01:49]}
20. Rhg1 {[%clk 0:02:16.8]} 20... g6 {[%clk 0:01:49.1]} 21. R1g2 {[%clk
0:01:55.9]} 21... Qd7 {[%clk 0:01:42.9]} 22. f3 {[%clk 0:01:51.9]} 22... Nh5
{[%clk 0:01:42.3]} 23. fxe4 {[%clk 0:01:51.2]} 23... Nxg3 {[%clk 0:01:38.2]} 24.
Rxg3 {[%clk 0:01:51.1]} 24... dxe4 {[%clk 0:01:38.7]} 25. d5 {[%clk 0:01:49.6]}
25... f6 {[%clk 0:01:36.1]} 26. d6 {[%clk 0:01:50.1]} 26... Bd8 {[%clk
0:01:31.6]} 27. Qc4+ {[%clk 0:01:50.6]} 27... Kg7 {[%clk 0:01:06.9]} 28. Qxa6
{[%clk 0:01:50.9]} 28... h5 {[%clk 0:01:07.7]} 29. Qf1 {[%clk 0:01:32.2]} 29...
Qa7 {[%clk 0:00:58.3]} 30. Nxe4 {[%clk 0:01:30.6]} 30... Qf7 {[%clk 0:00:51]}
31. Rf3 {[%clk 0:01:19]} 31... Qd5 {[%clk 0:00:50.5]} 32. Nxf6 {[%clk 0:01:13]}
32... Qxc5+ {[%clk 0:00:49.3]} 33. Kb1 {[%clk 0:01:14.1]} 33... Bxf6 {[%clk
0:00:29.4]} 34. Rxf6 {[%clk 0:01:15.1]} 34... Qxd6 {[%clk 0:00:20.2]} 35. Rxd6+
{[%clk 0:01:08.4]} 1-0

[Event "*** Titled Tuesday Blitz"]
[Site "Chess.com"]
[Date "2019.02.05"]
[Round "7"]
[White "Shivagami"]
[Black "monalize"]
[Result "0-1"]
[WhiteElo "2146"]
[BlackElo "2309"]
[TimeControl "180+2"]
[EndTime "14:38:51 PST"]
[Termination "monalize won by checkmate"]

1. d4 {[%clk 0:03:01.9]} 1... d5 {[%clk 0:02:57.9]} 2. Bf4 {[%clk 0:03:02.4]}
2... Nf6 {[%clk 0:02:57.5]} 3. e3 {[%clk 0:03:03.3]} 3... Bf5 {[%clk 0:02:58.3]}
4. c4 {[%clk 0:03:01.8]} 4... c6 {[%clk 0:02:49.7]} 5. Nc3 {[%clk 0:03:01.7]}
5... e6 {[%clk 0:02:49.9]} 6. Qb3 {[%clk 0:03:02.4]} 6... Qb6 {[%clk 0:02:49.8]}
7. c5 {[%clk 0:03:03.5]} 7... Qxb3 {[%clk 0:02:48.9]} 8. axb3 {[%clk 0:03:05.4]}
8... a6 {[%clk 0:02:34.4]} 9. b4 {[%clk 0:03:04.3]} 9... Be7 {[%clk 0:02:29.7]}
10. b5 {[%clk 0:02:29.4]} 10... O-O {[%clk 0:02:20.9]} 11. Nf3 {[%clk
0:02:17.5]} 11... cxb5 {[%clk 0:02:14]} 12. Nxb5 {[%clk 0:02:16.8]} 12... Nc6
{[%clk 0:02:14.1]} 13. Nc3 {[%clk 0:02:06.8]} 13... Nh5 {[%clk 0:02:11.2]} 14.
Bc7 {[%clk 0:02:04.5]} 14... Rac8 {[%clk 0:02:10.8]} 15. Bb6 {[%clk 0:02:04.6]}
15... g5 {[%clk 0:02:08.3]} 16. h3 {[%clk 0:02:01]} 16... Bg6 {[%clk 0:02:05.5]}
17. g4 {[%clk 0:01:57.2]} 17... Ng7 {[%clk 0:02:05.8]} 18. Be2 {[%clk
0:01:51.5]} 18... Rfe8 {[%clk 0:01:40.2]} 19. Kd2 {[%clk 0:01:46.5]} 19... Bf6
{[%clk 0:01:40.3]} 20. h4 {[%clk 0:01:27.9]} 20... h6 {[%clk 0:01:40.2]} 21.
hxg5 {[%clk 0:01:26.6]} 21... hxg5 {[%clk 0:01:40.2]} 22. Rh6 {[%clk 0:01:27.2]}
22... Kf8 {[%clk 0:01:36.8]} 23. Rah1 {[%clk 0:01:21]} 23... Ke7 {[%clk
0:01:37.2]} 24. Bd3 {[%clk 0:01:08.5]} 24... Bxd3 {[%clk 0:01:32.1]} 25. Kxd3
{[%clk 0:01:08.2]} 25... Rg8 {[%clk 0:01:31.9]} 26. e4 {[%clk 0:01:06.1]} 26...
dxe4+ {[%clk 0:01:29.4]} 27. Nxe4 {[%clk 0:01:06.4]} 27... Ne8 {[%clk 0:01:30]}
28. R1h5 {[%clk 0:00:55.4]} 28... Nb4+ {[%clk 0:01:30.3]} 29. Ke2 {[%clk
0:00:48.5]} 29... Nd5 {[%clk 0:01:30.7]} 30. Rh1 {[%clk 0:00:29.7]} 30... Nxb6
{[%clk 0:01:28.6]} 31. cxb6 {[%clk 0:00:30.7]} 31... Rc2+ {[%clk 0:01:29.2]} 32.
Kd3 {[%clk 0:00:31.2]} 32... Rxb2 {[%clk 0:01:29.8]} 33. Rc1 {[%clk 0:00:26.3]}
33... Rxb6 {[%clk 0:01:28.6]} 34. Nxf6 {[%clk 0:00:25.6]} 34... Nxf6 {[%clk
0:01:27.7]} 35. Ne5 {[%clk 0:00:26]} 35... Nd5 {[%clk 0:01:19.9]} 36. Rh7 {[%clk
0:00:21]} 36... Rb3+ {[%clk 0:01:17.8]} 37. Ke4 {[%clk 0:00:20]} 37... Nf6#
{[%clk 0:01:16.8]} 0-1

[Event "*** Titled Tuesday Blitz"]
[Site "Chess.com"]
[Date "2019.02.05"]
[Round "7"]
[White "Fivetrick"]
[Black "JoachimMouhamad"]
[Result "1-0"]
[WhiteElo "2548"]
[BlackElo "2281"]
[TimeControl "180+2"]
[EndTime "14:38:53 PST"]
[Termination "Fivetrick won by resignation"]

1. e4 {[%clk 0:03:01.9]} 1... c6 {[%clk 0:03:00.5]} 2. d4 {[%clk 0:03:02.3]}
2... d5 {[%clk 0:03:02]} 3. Nd2 {[%clk 0:03:03.9]} 3... dxe4 {[%clk 0:03:03.2]}
4. Nxe4 {[%clk 0:03:05.6]} 4... Nf6 {[%clk 0:03:04.9]} 5. Nxf6+ {[%clk
0:03:05.9]} 5... exf6 {[%clk 0:03:06.8]} 6. Nf3 {[%clk 0:03:03.4]} 6... Bd6
{[%clk 0:03:06.8]} 7. Be3 {[%clk 0:03:00.7]} 7... O-O {[%clk 0:03:07.9]} 8. Be2
{[%clk 0:03:01.5]} 8... Be6 {[%clk 0:03:06.6]} 9. Qd2 {[%clk 0:02:59.7]} 9...
Re8 {[%clk 0:03:07.7]} 10. O-O {[%clk 0:02:57.3]} 10... Nd7 {[%clk 0:03:05.7]}
11. c4 {[%clk 0:02:55.3]} 11... Nf8 {[%clk 0:03:04]} 12. Rac1 {[%clk 0:02:54.7]}
12... Ng6 {[%clk 0:02:54.4]} 13. Rfd1 {[%clk 0:02:51.3]} 13... Bg4 {[%clk
0:02:13.9]} 14. h3 {[%clk 0:02:46.7]} 14... Bf5 {[%clk 0:02:09.5]} 15. d5 {[%clk
0:02:37.9]} 15... c5 {[%clk 0:02:10.2]} 16. Re1 {[%clk 0:01:46.7]} 16... Qd7
{[%clk 0:02:07.2]} 17. Bf1 {[%clk 0:01:09.6]} 17... b6 {[%clk 0:02:02.2]} 18.
Kh1 {[%clk 0:00:40.5]} 18... Be4 {[%clk 0:01:59.2]} 19. Be2 {[%clk 0:00:28.7]}
19... Bf5 {[%clk 0:01:58.1]} 20. Bf1 {[%clk 0:00:24.7]} 20... Re4 {[%clk
0:01:53.8]} 21. Bd3 {[%clk 0:00:21.6]} 21... Rae8 {[%clk 0:01:42.1]} 22. Bxe4
{[%clk 0:00:21.6]} 22... Bxe4 {[%clk 0:01:44]} 23. Ng1 {[%clk 0:00:19.2]} 23...
Nh4 {[%clk 0:01:40.3]} 24. f3 {[%clk 0:00:19.2]} 24... Nf5 {[%clk 0:01:05.1]}
25. Bf2 {[%clk 0:00:15.6]} 25... Bc7 {[%clk 0:00:48.9]} 26. Rxe4 {[%clk
0:00:13.1]} 26... Rxe4 {[%clk 0:00:50.6]} 27. fxe4 {[%clk 0:00:10.3]} 27... Qd6
{[%clk 0:00:52.3]} 28. Nf3 {[%clk 0:00:10.4]} 28... Nd4 {[%clk 0:00:48.4]} 29.
Bxd4 {[%clk 0:00:10.4]} 1-0

[Event "*** Titled Tuesday Blitz"]
[Site "Chess.com"]
[Date "2019.02.05"]
[Round "7"]
[White "GataKamsky1974"]
[Black "justantan"]
[Result "1/2-1/2"]
[WhiteElo "2734"]
[BlackElo "2713"]
[TimeControl "180+2"]
[EndTime "14:39:00 PST"]
[Termination "Game drawn by agreement"]

1. d4 {[%clk 0:03:01.9]} 1... Nf6 {[%clk 0:02:59.8]} 2. Nf3 {[%clk 0:03:01.8]}
2... d5 {[%clk 0:03:00.5]} 3. Bf4 {[%clk 0:03:02.2]} 3... e6 {[%clk 0:03:01.4]}
4. e3 {[%clk 0:03:03.2]} 4... c5 {[%clk 0:03:02.6]} 5. Nbd2 {[%clk 0:03:03.4]}
5... Bd6 {[%clk 0:03:03.6]} 6. Bg3 {[%clk 0:03:04]} 6... O-O {[%clk 0:03:04.5]}
7. c3 {[%clk 0:03:00]} 7... Qc7 {[%clk 0:03:05.5]} 8. Ne5 {[%clk 0:02:51.2]}
8... b6 {[%clk 0:03:01.7]} 9. Bd3 {[%clk 0:02:51.4]} 9... Bb7 {[%clk 0:03:02.5]}
10. O-O {[%clk 0:02:33]} 10... Nc6 {[%clk 0:02:55.9]} 11. Nxc6 {[%clk
0:02:33.3]} 11... Bxc6 {[%clk 0:02:55.8]} 12. Bxd6 {[%clk 0:02:30]} 12... Qxd6
{[%clk 0:02:56.4]} 13. f4 {[%clk 0:02:30.9]} 13... a5 {[%clk 0:02:12.8]} 14. a4
{[%clk 0:02:27.3]} 14... Rfb8 {[%clk 0:02:09.6]} 15. Qe2 {[%clk 0:02:21.5]}
15... Qd7 {[%clk 0:02:02.9]} 16. Nf3 {[%clk 0:02:17.5]} 16... Bxa4 {[%clk
0:01:55.3]} 17. Ne5 {[%clk 0:02:17.4]} 17... Qe8 {[%clk 0:01:56.3]} 18. g4
{[%clk 0:01:58.6]} 18... c4 {[%clk 0:01:50.5]} 19. Bb1 {[%clk 0:01:56.9]} 19...
b5 {[%clk 0:01:49.6]} 20. g5 {[%clk 0:01:55.5]} 20... Ne4 {[%clk 0:01:50.8]} 21.
Bxe4 {[%clk 0:01:55.1]} 21... dxe4 {[%clk 0:01:52]} 22. f5 {[%clk 0:01:53.6]}
22... exf5 {[%clk 0:01:51.1]} 23. Rxf5 {[%clk 0:01:53.8]} 23... Ra7 {[%clk
0:01:50.8]} 24. Raf1 {[%clk 0:01:44.5]} 24... Rbb7 {[%clk 0:01:48.2]} 25. h4
{[%clk 0:01:40.7]} 25... Qe6 {[%clk 0:01:28.6]} 26. h5 {[%clk 0:01:39.7]} 26...
g6 {[%clk 0:00:53.8]} 27. hxg6 {[%clk 0:01:34.7]} 27... hxg6 {[%clk 0:00:53.8]}
28. Rf6 {[%clk 0:01:27.9]} 28... Qh3 {[%clk 0:00:54.4]} 29. Qf2 {[%clk 0:01:27]}
29... Qh5 {[%clk 0:00:49]} 30. Qf4 {[%clk 0:01:26.1]} 30... b4 {[%clk
0:00:37.1]} 31. cxb4 {[%clk 0:01:23.2]} 31... Be8 {[%clk 0:00:36.5]} 32. b5
{[%clk 0:01:11.9]} 32... Rxb5 {[%clk 0:00:26.7]} 33. Rf2 {[%clk 0:00:58]} 33...
c3 {[%clk 0:00:27.6]} 1/2-1/2

[Event "*** Titled Tuesday Blitz"]
[Site "Chess.com"]
[Date "2019.02.05"]
[Round "7"]
[White "Walter_White_Poland"]
[Black "Morshynska"]
[Result "1-0"]
[WhiteElo "2171"]
[BlackElo "2070"]
[TimeControl "180+2"]
[EndTime "14:39:02 PST"]
[Termination "Walter_White_Poland won by resignation"]

1. e4 {[%clk 0:02:59.9]} 1... e5 {[%clk 0:03:00]} 2. Nf3 {[%clk 0:03:00.3]} 2...
Nc6 {[%clk 0:03:00.3]} 3. Bb5 {[%clk 0:03:00.8]} 3... a6 {[%clk 0:03:01]} 4. Ba4
{[%clk 0:03:02.3]} 4... Nf6 {[%clk 0:03:01.5]} 5. O-O {[%clk 0:03:03.5]} 5... b5
{[%clk 0:03:02.3]} 6. Bb3 {[%clk 0:03:04.5]} 6... Bb7 {[%clk 0:03:04.2]} 7. Nc3
{[%clk 0:03:03.9]} 7... Bc5 {[%clk 0:02:55.6]} 8. Nd5 {[%clk 0:02:59.5]} 8... h6
{[%clk 0:02:51.3]} 9. c3 {[%clk 0:02:57.8]} 9... d6 {[%clk 0:02:43.8]} 10. d4
{[%clk 0:02:52.1]} 10... Ba7 {[%clk 0:02:44]} 11. a4 {[%clk 0:02:41.7]} 11...
O-O {[%clk 0:02:37.2]} 12. Nxf6+ {[%clk 0:02:16.6]} 12... Qxf6 {[%clk
0:02:39.1]} 13. Bd5 {[%clk 0:02:12.7]} 13... Rfe8 {[%clk 0:01:57]} 14. axb5
{[%clk 0:02:02.2]} 14... axb5 {[%clk 0:01:56.5]} 15. Qb3 {[%clk 0:01:46.8]}
15... b4 {[%clk 0:01:27.6]} 16. Qc4 {[%clk 0:01:27.6]} 16... Nd8 {[%clk
0:00:53.1]} 17. Bxb7 {[%clk 0:01:26.6]} 17... Nxb7 {[%clk 0:00:55]} 18. Qxb4
{[%clk 0:01:23.9]} 18... Reb8 {[%clk 0:00:41.2]} 19. dxe5 {[%clk 0:01:14]} 19...
dxe5 {[%clk 0:00:41]} 20. Be3 {[%clk 0:01:13.1]} 20... c5 {[%clk 0:00:28.1]} 21.
Qc4 {[%clk 0:00:48.7]} 21... Nd6 {[%clk 0:00:24.1]} 22. Qd5 {[%clk 0:00:47.3]}
22... Qe6 {[%clk 0:00:24.6]} 23. Nxe5 {[%clk 0:00:37]} 23... Qxd5 {[%clk
0:00:21.6]} 24. exd5 {[%clk 0:00:37.6]} 24... Bb6 {[%clk 0:00:15.2]} 25. Nd7
{[%clk 0:00:34.1]} 25... Rxa1 {[%clk 0:00:15.2]} 26. Rxa1 {[%clk 0:00:34.2]}
26... Rb7 {[%clk 0:00:13.3]} 27. Nxb6 {[%clk 0:00:35.1]} 27... Rxb6 {[%clk
0:00:15.2]} 28. Bxc5 {[%clk 0:00:36.2]} 1-0

[Event "*** Titled Tuesday Blitz"]
[Site "Chess.com"]
[Date "2019.02.05"]
[Round "7"]
[White "TomasKapitanchuk"]
[Black "Quiet_Desperation"]
[Result "0-1"]
[WhiteElo "2413"]
[BlackElo "2420"]
[TimeControl "180+2"]
[EndTime "14:39:06 PST"]
[Termination "Quiet_Desperation won on time"]

1. e4 {[%clk 0:03:01.9]} 1... Nc6 {[%clk 0:03:00]} 2. d4 {[%clk 0:03:01]} 2...
d5 {[%clk 0:03:00.8]} 3. exd5 {[%clk 0:03:00.8]} 3... Qxd5 {[%clk 0:03:01.3]} 4.
Nf3 {[%clk 0:03:01.3]} 4... e5 {[%clk 0:03:02.1]} 5. Be3 {[%clk 0:02:56.5]} 5...
Bg4 {[%clk 0:02:56.8]} 6. Be2 {[%clk 0:02:41.1]} 6... exd4 {[%clk 0:02:49.9]} 7.
Nxd4 {[%clk 0:02:19.8]} 7... Qxg2 {[%clk 0:02:09.6]} 8. Rf1 {[%clk 0:02:10.5]}
8... Bxe2 {[%clk 0:02:08.8]} 9. Qxe2 {[%clk 0:02:06.5]} 9... O-O-O {[%clk
0:02:06.1]} 10. Nf3 {[%clk 0:01:56.5]} 10... Nf6 {[%clk 0:01:51.7]} 11. Nbd2
{[%clk 0:01:51.4]} 11... Nd5 {[%clk 0:01:35]} 12. O-O-O {[%clk 0:01:43.4]} 12...
Nxe3 {[%clk 0:01:27.3]} 13. Qxe3 {[%clk 0:01:28.7]} 13... Qg6 {[%clk 0:01:24]}
14. Rg1 {[%clk 0:01:20.1]} 14... Qf5 {[%clk 0:00:57.6]} 15. Rg5 {[%clk
0:01:16.8]} 15... Qd7 {[%clk 0:00:51.5]} 16. Rgg1 {[%clk 0:01:08.3]} 16... Qe8
{[%clk 0:00:39.8]} 17. Qb3 {[%clk 0:00:31.4]} 17... Qe6 {[%clk 0:00:30]} 18. Ng5
{[%clk 0:00:07.2]} 18... Qxb3 {[%clk 0:00:21.3]} 19. axb3 {[%clk 0:00:09.1]}
19... Ne5 {[%clk 0:00:13.5]} 20. f4 {[%clk 0:00:09.2]} 20... h6 {[%clk 0:00:14]}
21. fxe5 {[%clk 0:00:09.1]} 21... hxg5 {[%clk 0:00:15.3]} 22. Rxg5 {[%clk
0:00:10.8]} 22... Rxh2 {[%clk 0:00:16.5]} 23. Rf5 {[%clk 0:00:12.7]} 23... g6
{[%clk 0:00:14.9]} 0-1

[Event "*** Titled Tuesday Blitz"]
[Site "Chess.com"]
[Date "2019.02.05"]
[Round "7"]
[White "AndrewMcStone"]
[Black "Vugar_Manafov"]
[Result "0-1"]
[WhiteElo "2101"]
[BlackElo "2371"]
[TimeControl "180+2"]
[EndTime "14:39:09 PST"]
[Termination "Vugar_Manafov won by resignation"]

1. d4 {[%clk 0:03:01.9]} 1... Nf6 {[%clk 0:02:58.9]} 2. c4 {[%clk 0:03:01.3]}
2... e6 {[%clk 0:02:56.8]} 3. Nc3 {[%clk 0:03:02.1]} 3... Bb4 {[%clk 0:02:57.8]}
4. f3 {[%clk 0:03:03.4]} 4... d6 {[%clk 0:02:56.5]} 5. e4 {[%clk 0:02:57.7]}
5... e5 {[%clk 0:02:54.3]} 6. Ne2 {[%clk 0:02:21]} 6... O-O {[%clk 0:02:50.3]}
7. a3 {[%clk 0:02:18.3]} 7... Bxc3+ {[%clk 0:02:47.9]} 8. Nxc3 {[%clk
0:02:12.1]} 8... Nc6 {[%clk 0:02:48.1]} 9. Be3 {[%clk 0:02:08]} 9... Nh5 {[%clk
0:02:36.8]} 10. d5 {[%clk 0:02:01.3]} 10... Ne7 {[%clk 0:02:26.3]} 11. Qd2
{[%clk 0:01:49.6]} 11... f5 {[%clk 0:02:23.2]} 12. Bd3 {[%clk 0:01:48.1]} 12...
fxe4 {[%clk 0:02:19.9]} 13. Nxe4 {[%clk 0:01:33.7]} 13... Nf5 {[%clk 0:02:17.9]}
14. O-O-O {[%clk 0:01:24.1]} 14... Nxe3 {[%clk 0:02:08.8]} 15. Qxe3 {[%clk
0:01:26]} 15... Nf4 {[%clk 0:02:09.9]} 16. g3 {[%clk 0:01:20.1]} 16... Nxd3+
{[%clk 0:02:06.7]} 17. Qxd3 {[%clk 0:01:18.7]} 17... Bf5 {[%clk 0:02:08.2]} 18.
Rhf1 {[%clk 0:01:13.8]} 18... a6 {[%clk 0:01:52.6]} 19. Qe3 {[%clk 0:01:01.6]}
19... b5 {[%clk 0:01:45.4]} 20. c5 {[%clk 0:01:01.1]} 20... a5 {[%clk
0:01:41.4]} 21. b3 {[%clk 0:00:50.6]} 21... Qe7 {[%clk 0:01:36.8]} 22. cxd6
{[%clk 0:00:33]} 22... cxd6 {[%clk 0:01:38.7]} 23. Kb2 {[%clk 0:00:34.2]} 23...
Rfc8 {[%clk 0:01:35.8]} 24. Rc1 {[%clk 0:00:34.9]} 24... h6 {[%clk 0:01:21.6]}
25. Rc3 {[%clk 0:00:18.3]} 25... Rxc3 {[%clk 0:01:20.4]} 26. Qxc3 {[%clk
0:00:20.2]} 26... a4 {[%clk 0:01:16.8]} 27. b4 {[%clk 0:00:19.8]} 27... Rc8
{[%clk 0:01:16.1]} 28. Qd2 {[%clk 0:00:20.5]} 28... Rc4 {[%clk 0:01:14.2]} 29.
Rc1 {[%clk 0:00:20.6]} 29... Qc7 {[%clk 0:01:10.1]} 30. Rxc4 {[%clk 0:00:20.9]}
30... Qxc4 {[%clk 0:01:12]} 31. Qc2 {[%clk 0:00:12.3]} 31... Qd4+ {[%clk
0:01:04]} 32. Ka2 {[%clk 0:00:10]} 32... Qxd5+ {[%clk 0:01:04.3]} 33. Kb2 {[%clk
0:00:10.5]} 33... Kh8 {[%clk 0:01:03.5]} 34. Qc7 {[%clk 0:00:08.9]} 34... Qd4+
{[%clk 0:01:02]} 35. Kc1 {[%clk 0:00:08.7]} 35... Qe3+ {[%clk 0:01:01.4]} 36.
Kd1 {[%clk 0:00:07.5]} 36... Qxf3+ {[%clk 0:01:02.2]} 0-1

[Event "*** Titled Tuesday Blitz"]
[Site "Chess.com"]
[Date "2019.02.05"]
[Round "7"]
[White "mouseWLZ"]
[Black "ShadyH9"]
[Result "1-0"]
[WhiteElo "2487"]
[BlackElo "2326"]
[TimeControl "180+2"]
[EndTime "14:39:24 PST"]
[Termination "mouseWLZ won on time"]

1. e4 {[%clk 0:03:01.9]} 1... c5 {[%clk 0:02:59.5]} 2. Nf3 {[%clk 0:03:02.7]}
2... Nc6 {[%clk 0:03:00.4]} 3. d4 {[%clk 0:03:03.3]} 3... cxd4 {[%clk
0:03:02.3]} 4. Nxd4 {[%clk 0:03:05.2]} 4... g6 {[%clk 0:03:03.2]} 5. c4 {[%clk
0:03:05.8]} 5... Bg7 {[%clk 0:03:02.1]} 6. Be3 {[%clk 0:03:06.9]} 6... Nf6
{[%clk 0:02:51.7]} 7. Nc3 {[%clk 0:03:07]} 7... O-O {[%clk 0:02:51.8]} 8. Be2
{[%clk 0:03:05.2]} 8... d6 {[%clk 0:02:52.5]} 9. O-O {[%clk 0:03:04.7]} 9... Bd7
{[%clk 0:02:53.4]} 10. f3 {[%clk 0:03:03]} 10... Nxd4 {[%clk 0:02:37.3]} 11.
Bxd4 {[%clk 0:03:04.9]} 11... a5 {[%clk 0:02:38]} 12. Qd2 {[%clk 0:03:04]} 12...
Bc6 {[%clk 0:02:37.4]} 13. Rfc1 {[%clk 0:03:01.8]} 13... Nd7 {[%clk 0:02:36.9]}
14. Be3 {[%clk 0:03:02.6]} 14... Be5 {[%clk 0:02:37.2]} 15. Rab1 {[%clk
0:02:57.8]} 15... Nc5 {[%clk 0:02:37.5]} 16. Nd5 {[%clk 0:02:52.9]} 16... e6
{[%clk 0:02:35.3]} 17. Nf4 {[%clk 0:02:32.1]} 17... Qe7 {[%clk 0:02:12.6]} 18.
Nh3 {[%clk 0:02:29.1]} 18... f5 {[%clk 0:01:55.3]} 19. exf5 {[%clk 0:02:24.3]}
19... gxf5 {[%clk 0:01:48.4]} 20. Bf4 {[%clk 0:02:19.4]} 20... b6 {[%clk
0:01:36.5]} 21. Qe3 {[%clk 0:02:04.8]} 21... Qf6 {[%clk 0:01:32.2]} 22. Rd1
{[%clk 0:01:49.4]} 22... Rad8 {[%clk 0:01:28]} 23. Bg5 {[%clk 0:01:38.1]} 23...
Qg7 {[%clk 0:01:27.8]} 24. Bxd8 {[%clk 0:01:23.6]} 24... Rxd8 {[%clk 0:01:29.6]}
25. Qg5 {[%clk 0:01:24.5]} 25... Rc8 {[%clk 0:00:32.8]} 26. Qxg7+ {[%clk
0:01:20.6]} 26... Kxg7 {[%clk 0:00:34.6]} 27. f4 {[%clk 0:01:12]} 27... Bf6
{[%clk 0:00:34.4]} 28. Rxd6 {[%clk 0:01:12.7]} 28... Ne4 {[%clk 0:00:22.3]} 29.
Rdd1 {[%clk 0:01:09]} 29... h6 {[%clk 0:00:09.9]} 30. Nf2 {[%clk 0:01:07.7]}
30... Nc5 {[%clk 0:00:07]} 31. Bf3 {[%clk 0:00:52]} 31... Bxf3 {[%clk
0:00:06.5]} 32. gxf3 {[%clk 0:00:53.9]} 32... Na4 {[%clk 0:00:06.6]} 33. Rd7+
{[%clk 0:00:53.6]} 33... Kg6 {[%clk 0:00:02.3]} 34. b3 {[%clk 0:00:54.7]} 34...
Nc3 {[%clk 0:00:02.1]} 35. Re1 {[%clk 0:00:55.3]} 1-0

[Event "*** Titled Tuesday Blitz"]
[Site "Chess.com"]
[Date "2019.02.05"]
[Round "7"]
[White "rasmussvane"]
[Black "GMBenjaminBok"]
[Result "0-1"]
[WhiteElo "2756"]
[BlackElo "2862"]
[TimeControl "180+2"]
[EndTime "14:39:25 PST"]
[Termination "GMBenjaminBok won by resignation"]

1. Nf3 {[%clk 0:03:01.9]} 1... d5 {[%clk 0:03:00.4]} 2. g3 {[%clk 0:03:01.9]}
2... c6 {[%clk 0:03:01.9]} 3. Bg2 {[%clk 0:03:02.7]} 3... Bg4 {[%clk 0:03:03.6]}
4. O-O {[%clk 0:03:03.9]} 4... Nd7 {[%clk 0:03:05.3]} 5. h3 {[%clk 0:03:05.4]}
5... Bh5 {[%clk 0:03:06.1]} 6. d4 {[%clk 0:03:06.8]} 6... e6 {[%clk 0:03:07.6]}
7. c4 {[%clk 0:03:08.2]} 7... Be7 {[%clk 0:03:09.1]} 8. cxd5 {[%clk 0:03:09.6]}
8... exd5 {[%clk 0:03:10.2]} 9. Qb3 {[%clk 0:03:05.5]} 9... Qb6 {[%clk
0:03:10.8]} 10. Qe3 {[%clk 0:03:06.6]} 10... Nf8 {[%clk 0:03:12.3]} 11. Nh4
{[%clk 0:03:04.2]} 11... Ne6 {[%clk 0:03:11]} 12. Nf5 {[%clk 0:03:02.9]} 12...
Bf6 {[%clk 0:03:12.2]} 13. Rd1 {[%clk 0:02:49.4]} 13... Bg6 {[%clk 0:03:12.2]}
14. g4 {[%clk 0:02:48.6]} 14... O-O-O {[%clk 0:02:38.8]} 15. Nc3 {[%clk
0:02:39.2]} 15... Bxf5 {[%clk 0:02:33.9]} 16. gxf5 {[%clk 0:02:40.2]} 16... Nxd4
{[%clk 0:02:34.8]} 17. Qd3 {[%clk 0:02:37.4]} 17... Ne7 {[%clk 0:02:33.3]} 18.
a4 {[%clk 0:01:46.7]} 18... Qa6 {[%clk 0:01:51.6]} 19. Qxa6 {[%clk 0:01:33.7]}
19... bxa6 {[%clk 0:01:53.5]} 20. Bf4 {[%clk 0:01:28.1]} 20... Nexf5 {[%clk
0:01:47.1]} 21. e4 {[%clk 0:01:13.2]} 21... dxe4 {[%clk 0:01:41.7]} 22. Bxe4
{[%clk 0:01:15.1]} 22... Rhe8 {[%clk 0:01:39.8]} 23. Kf1 {[%clk 0:01:12.7]}
23... Kb7 {[%clk 0:01:33.3]} 24. a5 {[%clk 0:01:12.4]} 24... Nd6 {[%clk
0:01:22.2]} 25. Bg2 {[%clk 0:00:47]} 25... N6b5 {[%clk 0:01:22.7]} 26. Na4
{[%clk 0:00:47.4]} 26... Nb3 {[%clk 0:01:17]} 27. Rxd8 {[%clk 0:00:47.4]} 27...
Rxd8 {[%clk 0:01:15]} 28. Re1 {[%clk 0:00:41.6]} 28... Rd4 {[%clk 0:01:06.6]}
29. Re4 {[%clk 0:00:42.8]} 29... Rxe4 {[%clk 0:00:54.8]} 30. Bxe4 {[%clk
0:00:44.7]} 30... g6 {[%clk 0:00:56.2]} 31. Ke2 {[%clk 0:00:44.6]} 31... Bd4
{[%clk 0:00:56.8]} 32. Bc2 {[%clk 0:00:42.3]} 32... Nxa5 {[%clk 0:00:55.3]} 33.
f3 {[%clk 0:00:38.4]} 33... Nc4 {[%clk 0:00:53.4]} 34. b3 {[%clk 0:00:35.6]}
34... Nb6 {[%clk 0:00:51.1]} 35. Kd3 {[%clk 0:00:34.7]} 35... c5 {[%clk
0:00:43]} 36. Nxb6 {[%clk 0:00:29.4]} 36... axb6 {[%clk 0:00:42.8]} 37. Kc4
{[%clk 0:00:31.1]} 37... Na3+ {[%clk 0:00:42.7]} 38. Kd3 {[%clk 0:00:28.4]}
38... Nxc2 {[%clk 0:00:43.9]} 39. Kxc2 {[%clk 0:00:30.3]} 39... Kc6 {[%clk
0:00:45.2]} 40. Kd3 {[%clk 0:00:31.7]} 40... Kd5 {[%clk 0:00:46.2]} 41. Bc7
{[%clk 0:00:20.1]} 41... b5 {[%clk 0:00:45.7]} 0-1